bitfinex/quotes_ETHUSD_20251012
["timestamp","ask_amount","ask_price","bid_price","bid_amount"]
[1760287492051,2.650315,4126.9,4120.9,0.092]
[1760287492250,2.650315,4128.2,4121.2,11.471864]
[1760287492582,2.650315,4128.2,4120.3,15.70827296]
[1760287492583,2.202803,4128.9,4122.0,16.167172]
[1760287492755,1.23435557,4128.4,4122.1,0.092]
[1760287493077,0.001,4129.0,4122.4,2.42577139]
[1760287493251,2.650315,4128.8,4122.5,0.092]
[1760287493458,2.650315,4128.2,4122.5,2.51771203]
[1760287493673,2.650315,4128.2,4120.6,1.92]
[1760287493674,3.93699258,4127.2,4117.3,44.0731]
[1760287493853,1.28566223,4127.0,4121.2,8.387161]
[1760287494066,0.001,4129.0,4121.4,13.141148]
[1760287494242,0.001,4129.0,4121.3,1.065]
[1760287494243,0.001,4129.0,4122.8,30.0]
[1760287494445,2.42081997,4130.9,4122.9,1.39460672]
[1760287494645,2.650315,4129.3,4123.0,0.091]
[1760287494843,2.42183526,4129.1,4123.0,0.091]
[1760287495078,2.650315,4128.4,4123.0,0.091]
[1760287495281,1.27818767,4128.2,4123.0,0.091]
[1760287495591,0.001,4129.5,4125.6,2.42383262]
[1760287495744,0.001,4129.5,4128.1,0.091]
[1760287496261,0.001,4129.5,4126.7,0.091]
[1760287496601,0.001,4129.5,4121.5,1.26486093]
[1760287496602,2.650315,4129.3,4125.3,0.091]
[1760287496765,0.001,4129.5,4129.3,2.42168337]
[1760287496963,2.41800247,4135.7,4126.7,15.70827296]
[1760287496964,0.461,4134.7,4129.4,0.089]
[1760287497164,0.461,4133.1,4129.0,0.0723]
[1760287497368,3.111315,4131.2,4126.6,0.0723]
[1760287497685,2.28029714,4131.4,4126.7,0.972]
[1760287497853,2.41943288,4133.2,4126.8,0.2197]
[1760287498060,0.29141917,4137.5,4130.9,2.650315]
[1760287498252,2.41721053,4137.0,4131.0,0.6501]
[1760287498574,30.0,4136.0,4131.2,0.6336]
[1760287498775,0.29891917,4138.7,4131.2,0.6336]
[1760287498776,1.23795669,4138.9,4132.4,2.650315]
[1760287499094,2.49293834,4139.5,4130.5,2.64119531]
[1760287499095,1.2037285,4138.3,4132.5,0.4299]
[1760287499296,6.719004,4136.7,4132.5,0.4299]
[1760287499470,0.2365,4138.2,4130.5,0.2202]
[1760287499471,1.29219086,4135.7,4130.5,0.2202]
[1760287499675,1.24073062,4134.7,4129.4,0.4299]
[1760287499875,0.31624998,4135.6,4128.0,0.4299]
[1760287499876,2.41978415,4132.6,4128.0,0.4299]
[1760287500169,2.41878915,4134.3,4128.1,2.42242193]
[1760287500379,2.4183212,4135.1,4128.2,0.4299]
[1760287500590,1.22381382,4134.2,4128.2,0.4299]
[1760287500786,0.31624998,4134.3,4128.2,0.4299]
[1760287500985,2.41791189,4135.8,4128.6,1.8]
[1760287501184,1.29219086,4135.7,4128.7,1.4009]
[1760287501384,0.99999999,4137.1,4128.7,1.4009]
[1760287501385,5.116235,4135.6,4128.8,16.13817296]
[1760287501584,5.116235,4135.6,4128.7,0.971]
[1760287501585,5.427826,4135.9,4129.6,15.70827296]
[1760287501902,1.29246898,4133.5,4128.2,0.4299]
[1760287502064,17.22929713,4134.4,4128.2,0.4299]
[1760287502267,1.29323361,4136.9,4128.2,0.4299]
[1760287502469,0.2104,4144.1,4128.2,0.4299]
[1760287502470,15.70827296,4134.4,4128.2,0.4299]
[1760287502705,30.0,4132.6,4128.2,0.4299]
[1760287502875,15.70827296,4133.0,4128.2,0.4299]
[1760287502876,2.42135398,4130.0,4128.2,0.4299]
[1760287503075,1.92,4131.6,4126.4,0.4299]
[1760287503076,2.42119025,4130.2,4126.4,0.4299]
[1760287503276,2.42136613,4129.9,4126.4,0.4299]
[1760287503481,4.23162,4131.6,4126.4,0.4299]
[1760287503679,8.963595,4131.0,4126.4,0.4299]
[1760287503880,15.70827296,4132.4,4126.4,0.4299]
[1760287503881,0.31624998,4132.4,4126.4,0.4299]
[1760287504079,1.28516436,4131.0,4126.4,0.4299]
[1760287504312,0.2104,4132.5,4126.7,2.42319715]
[1760287504498,0.24897545,4132.6,4126.7,2.42319715]
[1760287504499,1.23777888,4132.8,4127.0,2.4230676]
[1760287504702,30.0,4130.5,4126.0,0.4299]
[1760287504902,30.0,4129.0,4124.6,0.2202]
[1760287505101,1.24508385,4130.6,4124.6,0.2202]
[1760287505102,1.23777888,4132.8,4125.6,0.4299]
[1760287505411,2.42282871,4127.5,4124.2,0.4299]
[1760287505711,16.361238,4128.4,4124.2,0.4299]
[1760287505917,1.92,4128.5,4124.3,2.42465388]
[1760287506075,2.42185396,4130.8,4124.8,15.70827296]
[1760287506076,0.001,4130.8,4124.8,15.70827296]
[1760287506276,4.201898,4130.7,4124.9,0.6501]
[1760287506477,0.001,4130.8,4128.9,2.42194494]
[1760287506676,0.001,4130.8,4125.2,5.81567]
[1760287506929,0.001,4130.8,4125.4,3.329409]
[1760287507107,2.053166,4130.7,4126.4,1.92]
[1760287507281,0.001,4130.8,4126.6,1.92]
[1760287507486,0.001,4130.8,4126.5,0.4299]
[1760287507487,0.001,4131.7,4127.6,15.70827296]
[1760287507688,2.117561,4137.9,4131.0,30.0]
[1760287508062,3.27701015,4140.3,4137.8,0.2202]
[1760287508063,0.86170157,4140.3,4137.8,0.2202]
[1760287508179,0.86170157,4140.3,4138.2,15.70827296]
[1760287508180,0.51163529,4140.3,4138.2,15.70827296]
[1760287508380,0.51163529,4140.3,4137.8,0.2202]
[1760287508381,0.071,4146.6,4138.4,1.23441921]
[1760287508580,0.109299,4143.2,4138.5,15.70827296]
[1760287508798,3.09569914,4145.0,4131.0,0.97]
[1760287508799,0.109299,4139.2,4131.0,0.97]
[1760287509010,0.109299,4139.0,4133.2,15.70827296]
[1760287509233,0.109299,4138.2,4131.5,15.70827296]
[1760287509434,0.109299,4137.8,4131.2,0.6336]
[1760287509729,0.109299,4139.6,4133.7,6.634523]
[1760287509931,0.109299,4139.6,4130.7,1.27253113]
[1760287509932,0.109299,4136.6,4130.7,1.27253113]
[1760287510153,0.109299,4138.9,4132.3,12.976228]
[1760287510451,0.109299,4138.9,4131.5,1.92]
[1760287510452,0.109299,4136.4,4129.9,4.157988]
[1760287510615,2.41935905,4133.4,4127.2,6.914515]
[1760287510795,15.70827296,4135.3,4128.3,2.952]
[1760287510796,0.109299,4133.3,4128.3,2.952]
[1760287511135,0.109299,4134.8,4128.4,15.70827296]
[1760287511333,0.109299,4133.3,4127.2,0.97]
[1760287511506,0.109299,4133.3,4127.1,6.731725]
[1760287511707,0.109299,4132.4,4126.0,4.171947]
[1760287511917,0.109299,4132.4,4125.9,0.97]
[1760287511918,0.109299,4133.3,4129.2,2.42176792]
[1760287512094,0.461,4134.4,4128.6,0.97]
[1760287512095,0.109299,4134.2,4128.6,0.97]
[1760287512300,0.109299,4134.2,4128.7,6.836327]
[1760287512500,0.109299,4137.3,4130.7,15.70827296]
[1760287512701,0.109299,4138.9,4132.2,0.6336]
[1760287512899,0.109299,4138.9,4132.0,4.057852]
[1760287512900,0.109299,4138.9,4137.2,0.1208]
[1760287513123,2.52476721,4140.0,4133.7,2.41909353]
[1760287513339,0.2365,4140.4,4133.0,1.92]
[1760287513340,0.30976142,4139.9,4135.6,0.6336]
[1760287513557,0.30976142,4139.9,4135.5,2.41808729]
[1760287513558,0.109299,4139.8,4135.5,2.41808729]
[1760287513836,0.109299,4138.2,4132.7,0.97]
[1760287514031,0.109299,4136.6,4130.8,2.309083]
[1760287514235,0.109299,4136.2,4131.1,1.92]
[1760287514532,0.109299,4137.9,4130.7,2.42089718]
[1760287514756,0.109299,4136.4,4130.7,1.92]
[1760287514911,11.993196,4142.4,4134.1,2.796074]
[1760287515099,11.993196,4142.4,4134.0,15.70827296]
[1760287515100,27.394543,4141.3,4134.2,2.889]
[1760287515304,27.394543,4141.3,4129.1,1.21259543]
[1760287515305,15.70827296,4138.9,4129.2,0.969]
[1760287515570,0.461,4141.2,4131.6,8.984321]
[1760287515571,0.6336,4138.6,4131.6,8.984321]
[1760287515698,0.59810782,4141.2,4129.3,0.27557898]
[1760287515699,0.30976142,4140.4,4132.5,1.27253113]
[1760287515899,0.461,4146.4,4134.9,4.836874]
[1760287516134,0.461,4145.3,4138.5,1.92]
[1760287516430,30.0,4144.0,4135.1,0.969]
[1760287516648,30.0,4143.8,4135.8,8.587858]
[1760287516845,0.1,4151.0,4142.6,15.70827296]
[1760287517001,0.1,4151.0,4142.6,0.969]
[1760287517002,5.99963,4147.6,4142.6,0.969]
[1760287517199,5.99963,4147.6,4138.4,1.27253113]
[1760287517200,15.70827296,4147.4,4140.6,13.558969]
[1760287517401,0.01,4149.7,4144.1,2.69366]
[1760287517632,0.01,4149.7,4139.0,0.39104463]
[1760287517633,0.01,4149.7,4142.7,0.3002219]
[1760287517835,0.01,4149.7,4147.2,15.70827296]
[1760287518035,0.01,4149.7,4147.1,15.70827296]
[1760287518234,0.01,4149.7,4146.8,2.41149802]
[1760287518551,0.01,4149.7,4146.3,2.41177759]
[1760287518552,5.120229,4149.9,4142.0,0.969]
[1760287518699,5.120229,4149.9,4142.5,2.12015]
[1760287518700,0.4291,4149.5,4142.5,2.12015]
[1760287518899,0.34538672,4150.7,4145.9,15.70827296]
[1760287519195,0.34538672,4150.7,4141.9,1.27253113]
[1760287519196,0.34538672,4151.6,4145.7,0.969]
[1760287519416,1.28260598,4156.1,4149.5,2.4099289]
[1760287519620,2.98910115,4158.5,4153.0,2.4078979]
[1760287519918,2.98910115,4158.5,4151.8,0.35546635]
[1760287519919,3.41820115,4158.5,4151.8,0.35546635]
[1760287520129,0.3238914,4156.2,4148.1,30.0]
[1760287520332,2.98910115,4158.5,4152.9,28.62433918]
[1760287520551,2.98910115,4158.5,4152.6,1.92]
[1760287520720,2.98910115,4158.5,4152.7,0.32338575]
[1760287520920,2.98910115,4158.5,4148.9,0.968]
[1760287520921,1.22846677,4156.3,4148.9,0.968]
[1760287521123,1.22846677,4156.3,4144.5,1.28902019]
[1760287521124,1.4674406,4156.2,4148.1,30.0]
[1760287521362,15.70827296,4156.3,4147.3,0.32338575]
[1760287521363,0.29241995,4156.3,4147.3,0.32338575]
[1760287521675,1.10862937,4156.5,4150.0,2.40963855]
[1760287521836,1.10862937,4156.5,4149.9,15.70827296]
[1760287521837,2.569906,4156.4,4150.2,2.796102]
[1760287522163,22.695473,4156.0,4149.9,1.92]
[1760287522456,22.695473,4156.0,4149.7,1.92]
[1760287522457,0.77578379,4155.9,4146.3,30.0]
[1760287522660,0.77578379,4155.9,4140.4,45.0411]
[1760287522661,0.8529087,4156.5,4151.2,30.0]
[1760287522826,0.8529087,4156.5,4148.3,0.31491766]
[1760287522827,0.8529087,4156.5,4153.7,15.70827296]
[1760287523020,3.05998156,4161.3,4158.9,2.40448195]
[1760287523265,3.05998156,4161.3,4151.7,3.63948635]
[1760287523266,5.6e-07,4161.3,4161.2,2.40315293]
[1760287523426,2.19955345,4169.4,4161.3,0.32731022]
[1760287523626,2.14955345,4169.4,4161.5,1.11151213]
[1760287523826,2.14955345,4169.4,4161.4,0.325751]
[1760287523827,2.14955345,4169.4,4166.3,15.70827296]
[1760287524052,2.14955345,4169.4,4168.1,15.70827296]
[1760287524239,2.14955345,4169.4,4165.0,0.29851165]
[1760287524441,2.14955345,4169.4,4160.7,0.967]
[1760287524442,0.30525686,4169.3,4165.1,0.967]
[1760287524643,2.14955345,4169.4,4166.4,2.40010121]
[1760287524878,2.14955345,4169.4,4167.0,2.39980645]
[1760287525030,2.14955345,4169.4,4161.8,0.966]
[1760287525226,2.14955345,4169.4,4168.2,2.39908854]
[1760287525440,0.84411583,4171.8,4161.4,15.93821804]
[1760287525441,0.84411583,4171.8,4164.8,0.24004416]
[1760287525638,3.41438356,4174.8,4168.9,2.39866236]
[1760287525844,0.01,4178.0,4169.5,0.99999999]
[1760287526126,0.01,4178.0,4169.0,1.68640391]
[1760287526127,2.660467,4177.5,4169.1,2.39859921]
[1760287526347,1.10685735,4171.5,4163.8,2.40165233]
[1760287526565,0.33962578,4172.6,4163.9,0.965]
[1760287526729,14.681195,4171.7,4162.2,4.009722]
[1760287526931,0.28285621,4172.5,4159.3,0.99999999]
[1760287526932,2.896615,4171.5,4160.0,2.40383633]
[1760287527131,2.896615,4171.5,4159.3,0.99999999]
[1760287527132,8.381054,4169.2,4161.5,15.70827296]
[1760287527488,8.381054,4166.1,4157.4,15.70827296]
[1760287527782,8.381054,4166.1,4156.1,10.425]
[1760287527783,3.363599,4169.9,4161.9,30.0]
[1760287527931,0.2145,4171.4,4157.1,1.16515269]
[1760287527932,10.301054,4167.7,4157.1,1.16515269]
[1760287528133,8.381054,4167.5,4158.2,13.863609]
[1760287528369,8.381054,4172.8,4165.2,30.0]
[1760287528532,8.381054,4170.3,4165.3,0.964]
[1760287528732,8.381054,4170.6,4162.9,1.92]
[1760287528941,8.381054,4168.7,4162.2,30.0]
[1760287529174,1.92,4166.3,4160.4,2.718597]
[1760287529341,1.92,4166.3,4159.2,2.40427753]
[1760287529342,8.381054,4167.0,4160.3,6.42189]
[1760287529541,8.381054,4165.9,4158.1,2.40494456]
[1760287529733,8.381054,4165.9,4158.0,30.0]
[1760287529734,15.70827296,4165.1,4158.0,30.0]
[1760287529938,8.381054,4164.9,4156.5,30.0]
[1760287530265,0.4291,4165.8,4158.1,4.293907]
[1760287530266,8.381054,4163.4,4158.1,4.293907]
[1760287530490,0.4291,4166.1,4160.7,2.40341775]
[1760287530637,1.92,4166.2,4160.3,2.882294]
[1760287530835,8.381054,4165.5,4160.1,16.76224861]
[1760287531168,8.381054,4165.2,4159.7,24.484324]
[1760287531367,8.381054,4165.2,4154.7,1.28665557]
[1760287531368,8.381054,4163.5,4156.8,2.667396]
[1760287531574,8.381054,4160.7,4154.9,2.038579]
[1760287531737,0.4291,4164.7,4157.8,16.76224861]
[1760287531937,16.76224861,4160.3,4154.8,2.258858]
[1760287532132,8.381054,4160.1,4154.2,4.148871]
[1760287532345,2.40191665,4163.4,4146.5,0.00157]
[1760287532346,8.381054,4160.6,4152.3,0.24083038]
[1760287532557,8.381054,4161.7,4158.3,16.76224861]
[1760287532866,8.381054,4161.2,4156.4,16.76224861]
[1760287533070,8.381054,4161.2,4153.6,30.0]
[1760287533373,8.381054,4161.1,4156.4,16.76224861]
[1760287533541,0.3484372,4162.8,4153.4,0.35683107]
[1760287533542,0.4291,4166.0,4159.3,16.76224861]
[1760287533735,0.4291,4166.0,4159.7,16.76224861]
[1760287533736,2.40116613,4164.7,4159.7,16.76224861]
[1760287534046,0.4291,4166.0,4159.0,16.76224861]
[1760287534047,8.381054,4164.2,4159.0,16.76224861]
[1760287534261,16.76224861,4163.9,4158.4,16.76224861]
[1760287534494,8.381054,4163.7,4157.5,16.76224861]
[1760287534680,8.381054,4163.7,4157.2,0.963]
[1760287534681,16.76224861,4169.6,4163.1,2.40205616]
[1760287534881,0.4291,4170.2,4164.4,16.76224861]
[1760287535106,0.4291,4170.2,4161.9,2.40269392]
[1760287535107,0.4291,4168.5,4163.7,0.00832788]
[1760287535470,0.2145,4176.0,4163.7,0.00832788]
[1760287535471,16.76224861,4166.7,4163.7,0.00832788]
[1760287535674,14.681195,4166.2,4163.7,0.00832788]
[1760287535888,2.39939101,4167.8,4163.7,0.00832788]
[1760287536114,16.76224861,4166.1,4163.7,0.00832788]
[1760287536315,2.349706,4165.8,4163.7,0.00832788]
[1760287536474,1.23359467,4168.3,4163.7,0.00832788]
[1760287536475,9.151959,4166.8,4163.7,0.00832788]
[1760287536674,16.76224861,4165.1,4163.7,0.00832788]
[1760287536875,1.2274377,4164.7,4154.3,2.40713746]
[1760287537074,15.91081768,4163.3,4152.0,30.0]
[1760287537278,15.91081768,4163.3,4148.0,0.963]
[1760287537279,1.24800289,4162.3,4149.5,0.963]
[1760287537527,2.24217,4158.6,4149.8,0.24096385]
[1760287537676,16.76224861,4157.9,4153.7,2.40748409]
[1760287537881,1.92,4159.1,4153.4,16.76224861]
[1760287538138,1.92,4159.1,4147.7,2.41093125]
[1760287538139,16.76224861,4156.6,4151.2,16.76224861]
[1760287538353,16.76224861,4158.6,4153.2,16.76224861]
[1760287538509,16.76224861,4160.0,4153.4,30.0]
[1760287538846,0.4291,4161.8,4153.1,2.366462]
[1760287539055,1.92,4159.4,4153.5,30.0]
[1760287539346,0.2145,4162.2,4152.8,0.963]
[1760287539347,0.4291,4163.5,4155.6,1.92]
[1760287539514,14.90258635,4165.1,4155.9,30.0]
[1760287539714,16.76224861,4163.8,4160.5,2.40351049]
[1760287540038,0.2145,4166.4,4161.2,2.40310271]
[1760287540238,0.2145,4166.4,4158.3,1.92]
[1760287540239,16.76224861,4163.4,4158.3,1.92]
[1760287540539,16.76224861,4161.8,4156.1,30.0]
[1760287540751,16.76224861,4163.4,4157.7,15.116685]
[1760287540904,16.76224861,4163.4,4158.0,2.4050024]
[1760287541110,16.76224861,4163.4,4155.2,0.963]
[1760287541111,16.76224861,4161.8,4156.6,16.76224861]
[1760287541308,1.92,4161.7,4156.3,16.76224861]
[1760287541646,0.4291,4162.3,4155.4,2.40650719]
[1760287541952,0.6336,4159.5,4152.4,44.0731]
[1760287542150,1.92,4159.0,4153.8,16.76224861]
[1760287542311,16.76224861,4159.2,4153.8,16.76224861]
[1760287542508,0.2145,4162.2,4153.8,16.76224861]
[1760287542509,0.2145,4162.2,4154.6,16.76224861]
[1760287542853,2.40055565,4165.8,4152.3,0.963]
[1760287542854,0.001,4159.0,4156.4,4.3259282]
[1760287543153,0.001,4159.0,4155.5,16.76224861]
[1760287543154,0.001,4159.0,4155.5,2.4628]
[1760287543309,0.001,4159.0,4158.9,0.12]
[1760287543657,0.001,4159.0,4154.6,16.76224861]
[1760287543658,0.001,4159.0,4156.8,3.941859]
[1760287543856,0.001,4159.0,4158.8,2.40452007]
[1760287544062,0.001,4159.0,4156.8,2.40569668]
[1760287544223,0.001,4159.0,4158.9,0.6336]
[1760287544549,0.001,4159.0,4158.8,2.40450228]
[1760287544758,0.001,4159.0,4156.5,17.900195]
[1760287544915,0.001,4159.0,4158.9,8.82547795]
[1760287545110,0.001,4159.0,4156.8,2.40567887]
[1760287545333,0.001,4159.0,4158.9,2.40448195]
[1760287545540,0.001,4159.0,4157.2,7.484549]
[1760287545741,0.001,4159.0,4156.8,16.76224861]
[1760287545742,0.001,4159.0,4158.8,2.40451596]
[1760287545957,0.001,4159.0,4158.9,2.5536]
[1760287546160,0.001,4159.0,4158.9,5.101114]
[1760287546453,0.001,4159.0,4158.9,22.82636261]
[1760287546805,0.001,4159.0,4158.9,30.98578661]
[1760287547053,0.001,4159.5,4159.4,33.03779291]
[1760287547207,0.001,4159.5,4159.4,4.82221991]
[1760287547408,0.001,4159.5,4157.8,16.76224861]
[1760287547646,0.001,4159.5,4157.9,2.40506024]
[1760287547830,0.001,4159.5,4157.8,16.76224861]
[1760287548047,0.001,4159.5,4159.2,2.40428112]
[1760287548229,0.001,4159.5,4158.5,16.76224861]
[1760287548555,0.001,4159.5,4159.4,3.775392]
[1760287548767,0.001,4159.5,4159.4,5.10777]
[1760287548913,0.001,4159.5,4159.4,20.90498761]
[1760287549116,14.681195,4166.8,4159.7,25.267032]
[1760287549443,1.27445761,4169.4,4160.0,1.92]
[1760287549444,16.76224861,4164.9,4160.0,1.92]
[1760287549641,18.68224861,4164.7,4159.4,4.625]
[1760287549953,0.99999999,4167.6,4158.5,30.0]
[1760287549954,0.6336,4164.0,4158.5,30.0]
[1760287550246,16.76224861,4161.5,4157.2,2.40546521]
[1760287550455,0.00333116,4161.4,4157.3,3.042757]
[1760287550660,0.00333116,4161.4,4156.7,3.588391]
[1760287550867,0.00333116,4161.4,4156.0,0.3047]
[1760287550868,16.76224861,4159.8,4156.0,0.3047]
[1760287551152,16.76224861,4158.5,4156.0,0.3047]
[1760287551358,1.92,4159.4,4152.4,16.76224861]
[1760287551359,1.92,4157.6,4152.4,16.76224861]
[1760287551564,0.00333116,4157.5,4152.6,6.496809]
[1760287551843,0.00333116,4157.5,4152.4,16.76224861]
[1760287551844,2.5536,4157.2,4152.4,2.167477]
[1760287552010,4.87807,4157.0,4150.2,16.76224861]
[1760287552213,1.92,4155.7,4150.3,5.996399]
[1760287552413,4.126954,4156.8,4148.1,0.002]
[1760287552414,0.6336,4154.5,4150.2,2.40952243]
[1760287552655,0.00333116,4154.4,4148.3,2.41062603]
[1760287552861,0.00333116,4154.4,4148.6,16.76224861]
[1760287553025,2.5536,4153.3,4148.7,3.311962]
[1760287553233,16.76224861,4149.7,4148.1,0.002]
[1760287553421,0.00333116,4149.6,4148.1,0.002]
[1760287553624,2.55693116,4149.6,4148.1,0.002]
[1760287553824,0.63693116,4149.6,4148.1,0.002]
[1760287554019,0.00333116,4149.6,4148.1,0.002]
[1760287555706,2.40742697,4153.9,4148.1,0.002]
[1760287555707,1.24514373,4154.8,4148.1,0.002]
[1760287555842,15.3555276,4167.2,4148.1,0.002]
[1760287555843,16.76224861,4152.7,4148.1,0.002]
[1760287556157,16.76224861,4150.1,4148.1,0.002]
[1760287556358,2.4075899,4153.6,4148.1,0.002]
[1760287556359,0.4418,4151.5,4148.1,0.002]
[1760287556561,16.76224861,4153.0,4148.3,1.92]
[1760287556766,16.76224861,4153.8,4148.8,2.41033551]
[1760287556934,16.76224861,4153.8,4148.7,1.92]
[1760287557134,16.76224861,4153.8,4148.6,16.76224861]
[1760287557135,16.76224861,4153.8,4149.2,0.6336]
[1760287557338,16.76224861,4154.7,4149.4,16.76224861]
[1760287557649,1.27253113,4157.6,4148.1,0.002]
[1760287557650,3.46121,4157.3,4151.6,1.92]
[1760287557823,1.92,4155.3,4151.3,2.40886554]
[1760287558022,16.76224861,4157.9,4152.6,16.76224861]
[1760287558228,0.4418,4160.0,4153.8,9.789438]
[1760287558424,16.76224861,4159.4,4154.1,30.0]
[1760287558640,16.76224861,4159.4,4154.8,1.92]
[1760287558838,16.76224861,4159.4,4154.2,2.883]
[1760287559038,2.40214448,4163.0,4154.2,2.883]
[1760287559039,16.76224861,4160.1,4155.1,0.6336]
[1760287559265,1.22812857,4162.5,4154.3,2.40711372]
[1760287559562,16.76224861,4158.8,4153.3,10.362513]
[1760287559749,16.76224861,4158.8,4154.1,1.92]
[1760287559951,0.4418,4158.7,4152.1,0.963]
[1760287560125,16.76224861,4154.6,4149.5,5.68468]
[1760287560330,16.76224861,4156.2,4150.9,16.76224861]
[1760287560637,2.40325695,4161.1,4150.2,16.002531]
[1760287560638,0.4418,4160.1,4155.3,1.92]
[1760287560859,11.5109,4172.4,4154.4,1.92]
[1760287560860,16.76224861,4159.2,4154.4,1.92]
[1760287561200,1.27253113,4163.8,4154.4,1.92]
[1760287561201,0.4448,4162.6,4155.3,0.6336]
[1760287561345,0.003,4162.6,4158.2,1.92]
[1760287561552,0.003,4162.6,4161.6,2.40290458]
[1760287561779,0.003,4162.6,4159.8,2.40392883]
[1760287561780,16.76224861,4162.4,4159.8,2.40392883]
[1760287561990,0.003,4162.6,4158.2,2.272694]
[1760287562147,0.003,4162.6,4159.2,0.6336]
[1760287562481,0.003,4162.6,4158.7,1.92]
[1760287562482,0.003,4162.6,4159.6,2.006428]
[1760287562683,0.003,4162.6,4158.3,0.32166147]
[1760287562684,16.76224861,4162.4,4156.1,2.40607227]
[1760287562893,0.003,4162.6,4156.5,4.81174064]
[1760287563094,0.003,4162.6,4156.7,0.6336]
[1760287563095,16.76224861,4161.9,4156.7,0.6336]
[1760287563251,16.76224861,4160.9,4156.0,3.617824]
[1760287563447,16.76224861,4160.5,4156.3,2.40598609]
[1760287563647,0.003,4162.6,4153.8,0.002]
[1760287563648,0.4418,4160.8,4153.8,0.002]
[1760287563976,0.4418,4160.8,4154.4,2.8119]
[1760287564172,2.40246754,4162.4,4153.8,0.002]
[1760287564173,0.4418,4162.2,4155.2,16.76224861]
[1760287564370,16.76224861,4161.3,4156.0,2.40611952]
[1760287564577,2.84497809,4161.2,4154.4,16.185411]
[1760287564766,2.5536,4158.1,4154.3,0.002]
[1760287565088,1.92,4158.4,4154.3,0.002]
[1760287565292,2.5536,4157.2,4154.3,0.002]
[1760287565456,1.24258344,4160.2,4154.3,0.002]
[1760287565649,2.40361224,4160.5,4154.3,0.002]
[1760287565858,0.4418,4160.3,4154.6,2.524414]
[1760287566191,16.76224861,4160.4,4155.6,0.6336]
[1760287566490,16.76224861,4160.4,4156.0,3.614124]
[1760287566691,16.76224861,4159.5,4152.8,0.963]
[1760287566902,16.76224861,4161.0,4156.0,2.40612973]
[1760287567098,0.4418,4162.1,4156.5,0.6336]
[1760287567394,16.76224861,4161.0,4156.1,1.92]
[1760287567703,16.76224861,4162.2,4159.0,0.6336]
[1760287567898,0.003,4162.6,4158.5,2.4047086]
[1760287568074,0.003,4162.6,4159.2,0.6336]
[1760287568288,0.99999999,4168.9,4161.7,16.76224861]
[1760287568609,16.76224861,4166.5,4161.7,16.76224861]
[1760287568779,16.76224861,4165.7,4161.7,2.40284932]
[1760287568975,0.4418,4166.1,4161.7,2.40284932]
[1760287568976,16.76224861,4164.4,4161.7,2.40282715]
[1760287569180,16.76224861,4164.1,4159.4,2.00015]
[1760287569398,16.76224861,4164.1,4159.6,2.91878]
[1760287569585,16.76224861,4164.1,4159.3,0.6336]
[1760287569586,16.76224861,4163.0,4158.8,2.090467]
[1760287569796,16.76224861,4164.1,4156.8,16.76224861]
[1760287569797,16.76224861,4161.5,4156.8,16.76224861]
[1760287570010,0.6336,4160.6,4155.3,5.540446]
[1760287570312,1.92,4160.8,4154.9,0.963]
[1760287570515,16.76224861,4159.3,4154.9,0.963]
[1760287570824,16.76224861,4159.3,4151.8,2.4085564]
[1760287570825,0.008498,4167.5,4164.4,4.016303]
[1760287571116,0.008498,4167.5,4164.4,0.03191786]
[1760287571417,0.008498,4167.5,4163.8,0.51516609]
[1760287571617,0.008498,4167.5,4164.0,2.40148822]
[1760287571780,0.008498,4167.5,4162.1,0.03191786]
[1760287571781,3.598228,4164.8,4162.1,0.03191786]
[1760287571978,0.964,4164.9,4156.7,0.24048288]
[1760287572183,0.964,4164.9,4160.9,0.03191786]
[1760287572424,0.964,4164.9,4159.6,1.92]
[1760287572588,2.391619,4164.8,4160.0,0.03191786]
[1760287572795,6.266325,4164.8,4159.6,2.40407731]
[1760287572992,0.001,4164.9,4160.6,16.76224861]
[1760287573192,0.001,4164.9,4162.7,0.03191786]
[1760287573399,0.001,4164.9,4159.5,2.40413511]
[1760287573612,0.001,4164.9,4159.4,1.27253113]
[1760287573613,0.001,4164.9,4162.1,2.40263328]
[1760287573797,0.001,4164.9,4163.2,0.03191786]
[1760287574000,0.001,4164.9,4162.7,16.76224861]
[1760287574001,0.001,4164.9,4164.7,2.40111919]
[1760287574187,0.001,4164.9,4163.5,0.03191786]
[1760287574389,0.001,4164.9,4162.8,0.03191786]
[1760287574621,0.001,4164.9,4164.7,2.40110312]
[1760287574935,0.962,4164.8,4161.9,2.40272181]
[1760287575236,0.6336,4164.3,4159.6,0.02891786]
[1760287575525,0.6336,4164.6,4160.3,0.02891786]
[1760287575688,0.962,4164.8,4160.4,2.40361503]
[1760287575888,0.6336,4164.7,4160.3,0.02891786]
[1760287576144,0.6336,4164.7,4158.1,2.40490263]
[1760287576145,16.76224861,4163.2,4157.8,16.76224861]
[1760287576465,0.962,4164.8,4157.6,0.02891786]
[1760287576466,1.92,4161.8,4157.6,0.02891786]
[1760287576601,2.5536,4160.9,4155.2,16.76224861]
[1760287576927,2.5536,4160.9,4153.3,0.962]
[1760287576928,16.76224861,4162.7,4157.9,2.40503315]
[1760287577132,2.5536,4161.8,4156.3,0.02891786]
[1760287577338,1.92,4161.7,4158.9,2.40444719]
[1760287577483,0.4418,4162.6,4158.4,0.02891786]
[1760287577484,5.28467,4162.5,4158.4,0.02891786]
[1760287577686,0.6336,4161.7,4156.9,0.02891786]
[1760287578002,16.76224861,4160.4,4153.8,0.002]
[1760287578204,1.4242,4161.6,4155.9,0.02891786]
[1760287578205,1.92,4161.0,4155.9,0.02891786]
[1760287578402,1.92,4160.5,4156.6,0.02891786]
[1760287578736,0.962,4160.9,4154.7,16.76224861]
[1760287578887,0.4622,4162.6,4157.0,0.02891786]